[Event "Titled Tuesday Blitz May 11 2021"]
[White "Borsuk, Konstantin"]
[Black "Dubov, Daniil"]
[WhiteFideId "14113406"]
[BlackFideId "24126055"]
[WhiteElo "2363"]
[BlackElo "2722"]
[Result "1/2-1/2"]
[Round "03"]
[TimeControl "180+1"]
[Date "2021.05.11"]
[WhiteClock "0:00:07"]
[BlackClock "0:00:05"]

1. d4 {[%clk 0:03:00]}  Nf6 {[%clk 0:02:59]} 2. c4 {[%clk 0:03:01]}  e6 {[%clk 0:02:59]} 3. Nc3 {[%clk 0:03:01]}  c5 {[%clk 0:02:57]} 4. d5 {[%clk 0:03:01]}  exd5 {[%clk 0:02:57]} 5. cxd5 {[%clk 0:03:02]}  d6 {[%clk 0:02:57]} 6. Nf3 {[%clk 0:03:02]}  g6 {[%clk 0:02:57]} 7. g3 {[%clk 0:03:02]}  Bg7 {[%clk 0:02:57]} 8. Bg2 {[%clk 0:03:03]}  O-O {[%clk 0:02:57]} 9. O-O {[%clk 0:03:04]}  Re8 {[%clk 0:02:58]} 10. Nd2 {[%clk 0:03:03]}  a6 {[%clk 0:02:53]} 11. a4 {[%clk 0:03:03]}  Nbd7 {[%clk 0:02:54]} 12. Nc4 {[%clk 0:03:03]}  Ne5 {[%clk 0:02:53]} 13. Na3 {[%clk 0:02:54]}  Bd7 {[%clk 0:02:53]} 14. Rb1 {[%clk 0:02:50]}  Rc8 {[%clk 0:02:35]} 15. Bd2 {[%clk 0:02:41]}  h5 {[%clk 0:02:09]} 16. b4 {[%clk 0:02:33]}  c4 {[%clk 0:02:01]} 17. Bg5 {[%clk 0:02:10]}  Bf5 {[%clk 0:01:52]} 18. e4 {[%clk 0:01:53]}  Bg4 {[%clk 0:01:51]} 19. Qd2 {[%clk 0:01:47]}  Qd7 {[%clk 0:01:47]} 20. f3 {[%clk 0:01:47]}  Bh3 {[%clk 0:01:46]} 21. Nc2 {[%clk 0:01:40]}  Nd3 {[%clk 0:01:41]} 22. Ne1 {[%clk 0:01:30]}  Bxg2 {[%clk 0:01:39]} 23. Kxg2 {[%clk 0:01:29]}  Nh7 {[%clk 0:01:38]} 24. Be3 {[%clk 0:01:25]}  f5 {[%clk 0:01:37]} 25. Nxd3 {[%clk 0:01:04]}  cxd3 {[%clk 0:01:36]} 26. Rbc1 {[%clk 0:01:04]}  Rc4 {[%clk 0:01:03]} 27. Qxd3 {[%clk 0:00:57]}  Rec8 {[%clk 0:01:03]} 28. Ne2 {[%clk 0:00:53]}  fxe4 {[%clk 0:01:01]} 29. fxe4 {[%clk 0:00:41]}  Rxc1 {[%clk 0:01:00]} 30. Rxc1 {[%clk 0:00:36]}  Rxc1 {[%clk 0:01:00]} 31. Bxc1 {[%clk 0:00:36]}  Qxa4 {[%clk 0:01:00]} 32. Nf4 {[%clk 0:00:32]}  Nf8 {[%clk 0:00:55]} 33. Bd2 {[%clk 0:00:28]}  Qa2 {[%clk 0:00:40]} 34. Kh3 {[%clk 0:00:27]}  Qb2 {[%clk 0:00:37]} 35. Ne6 {[%clk 0:00:22]}  Nxe6 {[%clk 0:00:19]} 36. dxe6 {[%clk 0:00:22]}  Qe5 {[%clk 0:00:19]} 37. Qd5 {[%clk 0:00:20]}  Kf8 {[%clk 0:00:17]} 38. Bf4 {[%clk 0:00:20]}  Qxd5 {[%clk 0:00:17]} 39. exd5 {[%clk 0:00:21]}  Ke7 {[%clk 0:00:17]} 40. Bd2 {[%clk 0:00:19]}  Bf8 {[%clk 0:00:14]} 41. Kg2 {[%clk 0:00:19]}  Kf6 {[%clk 0:00:14]} 42. Kf3 {[%clk 0:00:14]}  Kf5 {[%clk 0:00:08]} 43. h3 {[%clk 0:00:14]}  Be7 {[%clk 0:00:07]} 44. Bc3 {[%clk 0:00:14]}  g5 {[%clk 0:00:03]} 45. g4+ {[%clk 0:00:14]}  hxg4+ {[%clk 0:00:04]} 46. hxg4+ {[%clk 0:00:14]}  Kg6 {[%clk 0:00:05]} 47. Ke4 {[%clk 0:00:14]}  b5 {[%clk 0:00:04]} 48. Bd4 {[%clk 0:00:12]}  Bd8 {[%clk 0:00:04]} 49. Ba7 {[%clk 0:00:13]}  Be7 {[%clk 0:00:04]} 50. Bb8 {[%clk 0:00:13]}  Kf6 {[%clk 0:00:04]} 51. Bc7 {[%clk 0:00:13]}  Kg6 {[%clk 0:00:04]} 52. Bb6 {[%clk 0:00:12]}  Kf6 {[%clk 0:00:04]} 53. Bd4+ {[%clk 0:00:08]}  Kg6 {[%clk 0:00:05]} 54. Bb6 {[%clk 0:00:06]}  Kf6 {[%clk 0:00:05]} 55. Bd4+ {[%clk 0:00:07]}  Kg6 {[%clk 0:00:05]} 56. Bb6 {[%clk 0:00:07]} 1/2-1/2


[Site "https://www.chess.com"]

[Event "Titled Tuesday Blitz May 11 2021"]
[White "Chigaev, Maksim"]
[Black "Nitin, S."]
[WhiteFideId "4108116"]
[BlackFideId "5018277"]
[WhiteElo "2646"]
[BlackElo "2431"]
[Result "1-0"]
[Round "03"]
[TimeControl "180+1"]
[Date "2021.05.11"]
[WhiteClock "0:00:15"]
[BlackClock "0:00:31"]

1. e4 {[%clk 0:03:00]}  c5 {[%clk 0:02:59]} 2. Nf3 {[%clk 0:03:00]}  d6 {[%clk 0:02:59]} 3. c3 {[%clk 0:02:58]}  Nf6 {[%clk 0:02:58]} 4. g3 {[%clk 0:02:56]}  Nbd7 {[%clk 0:02:57]} 5. d3 {[%clk 0:02:54]}  g6 {[%clk 0:02:57]} 6. Bg2 {[%clk 0:02:55]}  Bg7 {[%clk 0:02:58]} 7. O-O {[%clk 0:02:55]}  O-O {[%clk 0:02:58]} 8. Re1 {[%clk 0:02:55]}  e5 {[%clk 0:02:58]} 9. a4 {[%clk 0:02:56]}  Re8 {[%clk 0:02:57]} 10. Na3 {[%clk 0:02:56]}  Nf8 {[%clk 0:02:45]} 11. Bg5 {[%clk 0:02:52]}  h6 {[%clk 0:02:44]} 12. Bxf6 {[%clk 0:02:52]}  Bxf6 {[%clk 0:02:45]} 13. Nd2 {[%clk 0:02:52]}  Bg7 {[%clk 0:02:44]} 14. Ndc4 {[%clk 0:02:50]}  a6 {[%clk 0:02:38]} 15. a5 {[%clk 0:02:49]}  Rb8 {[%clk 0:02:38]} 16. Nc2 {[%clk 0:02:47]}  Be6 {[%clk 0:02:28]} 17. h4 {[%clk 0:02:47]}  h5 {[%clk 0:02:25]} 18. N2e3 {[%clk 0:02:47]}  Nh7 {[%clk 0:02:23]} 19. Qb3 {[%clk 0:02:47]}  Nf6 {[%clk 0:02:20]} 20. Qb6 {[%clk 0:02:44]}  Qxb6 {[%clk 0:02:18]} 21. axb6 {[%clk 0:02:45]}  Red8 {[%clk 0:02:17]} 22. Nd5 {[%clk 0:02:42]}  Bxd5 {[%clk 0:02:06]} 23. exd5 {[%clk 0:02:43]}  Bf8 {[%clk 0:02:03]} 24. Reb1 {[%clk 0:02:25]}  Re8 {[%clk 0:01:58]} 25. b4 {[%clk 0:02:20]}  cxb4 {[%clk 0:01:48]} 26. cxb4 {[%clk 0:02:21]}  Rec8 {[%clk 0:01:45]} 27. b5 {[%clk 0:02:14]}  axb5 {[%clk 0:01:44]} 28. Rxb5 {[%clk 0:02:14]}  Nd7 {[%clk 0:01:32]} 29. Ra7 {[%clk 0:02:10]}  Nc5 {[%clk 0:01:26]} 30. Bf1 {[%clk 0:02:10]}  f5 {[%clk 0:01:18]} 31. Na5 {[%clk 0:01:55]}  Be7 {[%clk 0:01:09]} 32. Kg2 {[%clk 0:01:20]}  Kf7 {[%clk 0:01:09]} 33. Be2 {[%clk 0:01:20]}  Kf6 {[%clk 0:01:10]} 34. Nc4 {[%clk 0:01:16]}  Bf8 {[%clk 0:00:54]} 35. f4 {[%clk 0:00:48]}  exf4 {[%clk 0:00:52]} 36. gxf4 {[%clk 0:00:49]}  Be7 {[%clk 0:00:48]} 37. Na5 {[%clk 0:00:34]}  Kf7 {[%clk 0:00:46]} 38. d4 {[%clk 0:00:19]}  Ne4 {[%clk 0:00:37]} 39. Rb2 {[%clk 0:00:19]}  Bxh4 {[%clk 0:00:33]} 40. Nxb7 {[%clk 0:00:17]}  Bf6 {[%clk 0:00:33]} 41. Nxd6+ {[%clk 0:00:16]}  Kf8 {[%clk 0:00:30]} 42. Nxc8 {[%clk 0:00:14]}  Rxc8 {[%clk 0:00:31]} 43. b7 {[%clk 0:00:15]} 1-0


[Site "https://www.chess.com"]

[Event "Titled Tuesday Blitz May 11 2021"]
[White "Costachi, Mihnea"]
[Black "Calin, Alexandru"]
[WhiteFideId "1217518"]
[BlackFideId "1222961"]
[WhiteElo "2479"]
[BlackElo "1993"]
[Result "1-0"]
[Round "03"]
[TimeControl "180+1"]
[Date "2021.05.11"]
[WhiteClock "0:01:14"]
[BlackClock "0:00:03"]

1. a3 {[%clk 0:03:00]}  d6 {[%clk 0:03:00]} 2. Nf3 {[%clk 0:02:58]}  e5 {[%clk 0:02:56]} 3. g3 {[%clk 0:02:56]}  f5 {[%clk 0:02:56]} 4. Bg2 {[%clk 0:02:56]}  Nf6 {[%clk 0:02:56]} 5. O-O {[%clk 0:02:57]}  Be7 {[%clk 0:02:56]} 6. b4 {[%clk 0:02:57]}  O-O {[%clk 0:02:56]} 7. Bb2 {[%clk 0:02:57]}  Be6 {[%clk 0:02:56]} 8. d3 {[%clk 0:02:57]}  c6 {[%clk 0:02:53]} 9. c4 {[%clk 0:02:57]}  Nbd7 {[%clk 0:02:52]} 10. Nc3 {[%clk 0:02:57]}  Kh8 {[%clk 0:02:48]} 11. Qc2 {[%clk 0:02:54]}  a6 {[%clk 0:02:25]} 12. a4 {[%clk 0:02:53]}  d5 {[%clk 0:02:24]} 13. c5 {[%clk 0:02:50]}  d4 {[%clk 0:02:21]} 14. Nb1 {[%clk 0:02:47]}  Nd5 {[%clk 0:02:20]} 15. Ba3 {[%clk 0:02:43]}  a5 {[%clk 0:02:16]} 16. b5 {[%clk 0:02:40]}  Nb4 {[%clk 0:01:59]} 17. Qb2 {[%clk 0:02:30]}  Bxc5 {[%clk 0:01:54]} 18. Nbd2 {[%clk 0:02:30]}  cxb5 {[%clk 0:01:51]} 19. axb5 {[%clk 0:02:30]}  Rc8 {[%clk 0:01:46]} 20. Rfc1 {[%clk 0:02:26]}  b6 {[%clk 0:01:46]} 21. Nc4 {[%clk 0:02:26]}  Qf6 {[%clk 0:01:41]} 22. h4 {[%clk 0:02:23]}  Bxc4 {[%clk 0:01:39]} 23. Rxc4 {[%clk 0:02:22]}  Nd5 {[%clk 0:01:16]} 24. Bxc5 {[%clk 0:02:11]}  Rxc5 {[%clk 0:00:55]} 25. Rxc5 {[%clk 0:02:10]}  Nxc5 {[%clk 0:00:52]} 26. Nxd4 {[%clk 0:02:10]}  exd4 {[%clk 0:00:53]} 27. Bxd5 {[%clk 0:02:10]}  Qe5 {[%clk 0:00:49]} 28. Bf3 {[%clk 0:02:01]}  f4 {[%clk 0:00:47]} 29. Kg2 {[%clk 0:02:02]}  fxg3 {[%clk 0:00:45]} 30. fxg3 {[%clk 0:02:03]}  Rf6 {[%clk 0:00:40]} 31. Rf1 {[%clk 0:01:58]}  h5 {[%clk 0:00:38]} 32. Bc6 {[%clk 0:01:33]}  Rxf1 {[%clk 0:00:18]} 33. Kxf1 {[%clk 0:01:34]}  Qe3 {[%clk 0:00:15]} 34. Kg2 {[%clk 0:01:23]}  a4 {[%clk 0:00:16]} 35. Qa2 {[%clk 0:01:23]}  a3 {[%clk 0:00:15]} 36. Bf3 {[%clk 0:01:19]}  Qc1 {[%clk 0:00:14]} 37. Qf7 {[%clk 0:01:18]}  Qh6 {[%clk 0:00:06]} 38. Bd5 {[%clk 0:01:15]}  g6 {[%clk 0:00:03]} 39. Qg8# {[%clk 0:01:14]} 1-0


[Site "https://www.chess.com"]

[Event "Titled Tuesday Blitz May 11 2021"]
[White "Dardha, Daniel"]
[Black "Senthil Maran K"]
[WhiteFideId "240990"]
[BlackFideId "25035681"]
[WhiteElo "2489"]
[BlackElo "2194"]
[Result "1-0"]
[Round "03"]
[TimeControl "180+1"]
[Date "2021.05.11"]
[WhiteClock "0:02:00"]
[BlackClock "0:00:12"]

1. d4 {[%clk 0:02:59]}  d5 {[%clk 0:02:58]} 2. Bf4 {[%clk 0:02:55]}  Nf6 {[%clk 0:02:54]} 3. e3 {[%clk 0:02:55]}  c6 {[%clk 0:02:50]} 4. Nd2 {[%clk 0:02:54]}  Bf5 {[%clk 0:02:50]} 5. Ngf3 {[%clk 0:02:53]}  e6 {[%clk 0:02:50]} 6. c4 {[%clk 0:02:51]}  Nbd7 {[%clk 0:02:49]} 7. h3 {[%clk 0:02:50]}  h6 {[%clk 0:02:48]} 8. Be2 {[%clk 0:02:47]}  Be7 {[%clk 0:02:47]} 9. O-O {[%clk 0:02:48]}  O-O {[%clk 0:02:47]} 10. a3 {[%clk 0:02:48]}  a5 {[%clk 0:02:42]} 11. c5 {[%clk 0:02:42]}  b6 {[%clk 0:02:26]} 12. b4 {[%clk 0:02:42]}  b5 {[%clk 0:02:26]} 13. a4 {[%clk 0:02:28]}  bxa4 {[%clk 0:00:44]} 14. b5 {[%clk 0:02:29]}  cxb5 {[%clk 0:00:30]} 15. Bxb5 {[%clk 0:02:30]}  Nb8 {[%clk 0:00:23]} 16. Qxa4 {[%clk 0:02:29]}  Ne4 {[%clk 0:00:22]} 17. Rfc1 {[%clk 0:02:27]}  Nxd2 {[%clk 0:00:21]} 18. Nxd2 {[%clk 0:02:28]}  Na6 {[%clk 0:00:18]} 19. Qxa5 {[%clk 0:02:20]}  Qxa5 {[%clk 0:00:13]} 20. Rxa5 {[%clk 0:02:21]}  Nb4 {[%clk 0:00:14]} 21. Rxa8 {[%clk 0:02:20]}  Rxa8 {[%clk 0:00:14]} 22. Bd6 {[%clk 0:02:08]}  Bxd6 {[%clk 0:00:13]} 23. cxd6 {[%clk 0:02:09]}  Nd3 {[%clk 0:00:13]} 24. Bxd3 {[%clk 0:02:01]}  Bxd3 {[%clk 0:00:14]} 25. d7 {[%clk 0:02:01]}  Ba6 {[%clk 0:00:14]} 26. Ra1 {[%clk 0:02:00]}  Kf8 {[%clk 0:00:09]} 27. Rxa6 {[%clk 0:02:00]}  Rd8 {[%clk 0:00:09]} 28. Ra7 {[%clk 0:01:59]}  Ke7 {[%clk 0:00:10]} 29. Nb3 {[%clk 0:01:59]}  Rxd7 {[%clk 0:00:11]} 30. Rxd7+ {[%clk 0:01:59]}  Kxd7 {[%clk 0:00:12]} 31. Kf1 {[%clk 0:02:00]}  Kc6 {[%clk 0:00:12]} 32. Ke2 {[%clk 0:02:00]}  f6 {[%clk 0:00:12]} 33. Nc5 {[%clk 0:01:59]}  e5 {[%clk 0:00:11]} 34. Nd3 {[%clk 0:01:59]}  Kd6 {[%clk 0:00:11]} 35. f3 {[%clk 0:01:58]}  g5 {[%clk 0:00:10]} 36. dxe5+ {[%clk 0:01:57]}  fxe5 {[%clk 0:00:10]} 37. e4 {[%clk 0:01:58]}  dxe4 {[%clk 0:00:09]} 38. fxe4 {[%clk 0:01:59]}  h5 {[%clk 0:00:10]} 39. Ne1 {[%clk 0:01:54]}  Kc5 {[%clk 0:00:10]} 40. Nf3 {[%clk 0:01:53]}  g4 {[%clk 0:00:10]} 41. hxg4 {[%clk 0:01:54]}  hxg4 {[%clk 0:00:10]} 42. Nxe5 {[%clk 0:01:54]}  Kd4 {[%clk 0:00:11]} 43. Nxg4 {[%clk 0:01:53]}  Kxe4 {[%clk 0:00:12]} 44. Kf2 {[%clk 0:01:54]}  Kf4 {[%clk 0:00:12]} 45. Ne3 {[%clk 0:01:55]}  Kg5 {[%clk 0:00:12]} 46. g3 {[%clk 0:01:56]}  Kh5 {[%clk 0:00:12]} 47. Kf3 {[%clk 0:01:57]}  Kg5 {[%clk 0:00:13]} 48. g4 {[%clk 0:01:58]}  Kh4 {[%clk 0:00:12]} 49. Kf4 {[%clk 0:01:59]}  Kh3 {[%clk 0:00:12]} 50. g5 {[%clk 0:01:59]}  Kh4 {[%clk 0:00:13]} 51. g6 {[%clk 0:02:00]}  Kh5 {[%clk 0:00:13]} 52. g7 {[%clk 0:02:01]}  Kg6 {[%clk 0:00:12]} 53. g8=Q+ {[%clk 0:01:59]}  Kf6 {[%clk 0:00:12]} 54. Nd5# {[%clk 0:02:00]} 1-0


[Site "https://www.chess.com"]

[Event "Titled Tuesday Blitz May 11 2021"]
[White "Demchenko, Anton"]
[Black "Korchmar, Vasiliy"]
[WhiteFideId "4160258"]
[BlackFideId "24131750"]
[WhiteElo "2593"]
[BlackElo "2370"]
[Result "1-0"]
[Round "03"]
[TimeControl "180+1"]
[Date "2021.05.11"]
[WhiteClock "0:02:33"]
[BlackClock "0:01:31"]

1. e4 {[%clk 0:03:00]}  c5 {[%clk 0:03:00]} 2. Nf3 {[%clk 0:03:00]}  d6 {[%clk 0:02:59]} 3. d4 {[%clk 0:03:01]}  cxd4 {[%clk 0:03:00]} 4. Qxd4 {[%clk 0:03:02]}  Nc6 {[%clk 0:02:58]} 5. Qe3 {[%clk 0:03:02]}  Nf6 {[%clk 0:02:56]} 6. h3 {[%clk 0:02:59]}  g6 {[%clk 0:02:56]} 7. Nc3 {[%clk 0:02:58]}  Bg7 {[%clk 0:02:56]} 8. Bc4 {[%clk 0:02:58]}  O-O {[%clk 0:02:56]} 9. O-O {[%clk 0:02:59]}  Bd7 {[%clk 0:02:49]} 10. Rd1 {[%clk 0:02:54]}  Rc8 {[%clk 0:02:48]} 11. Qe2 {[%clk 0:02:50]}  Na5 {[%clk 0:02:39]} 12. Bd3 {[%clk 0:02:49]}  a6 {[%clk 0:02:33]} 13. e5 {[%clk 0:02:38]}  dxe5 {[%clk 0:02:34]} 14. Nxe5 {[%clk 0:02:38]}  Qb6 {[%clk 0:01:59]} 15. Nxd7 {[%clk 0:02:34]}  Nxd7 {[%clk 0:01:59]} 16. Nd5 {[%clk 0:02:34]}  Qb4 {[%clk 0:01:31]} 17. Nxb4 {[%clk 0:02:33]} 1-0


[Site "https://www.chess.com"]

[Event "Titled Tuesday Blitz May 11 2021"]
[White "Dobrov, Vladimir"]
[Black "Gracia Alvarez, Gerardo Antonio"]
[WhiteFideId "4136594"]
[BlackFideId "5109124"]
[WhiteElo "2614"]
[BlackElo "2148"]
[Result "1-0"]
[Round "03"]
[TimeControl "180+1"]
[Date "2021.05.11"]
[WhiteClock "0:01:31"]
[BlackClock "0:00:57"]

1. d4 {[%clk 0:03:00]}  Nf6 {[%clk 0:02:59]} 2. c4 {[%clk 0:03:01]}  c5 {[%clk 0:02:59]} 3. d5 {[%clk 0:03:00]}  b5 {[%clk 0:03:00]} 4. Qc2 {[%clk 0:03:00]}  b4 {[%clk 0:03:00]} 5. e4 {[%clk 0:03:00]}  d6 {[%clk 0:02:59]} 6. Bd3 {[%clk 0:02:59]}  g6 {[%clk 0:02:58]} 7. f4 {[%clk 0:02:59]}  Bg7 {[%clk 0:02:59]} 8. Nf3 {[%clk 0:02:58]}  O-O {[%clk 0:02:59]} 9. O-O {[%clk 0:02:57]}  e6 {[%clk 0:02:58]} 10. Kh1 {[%clk 0:02:55]}  exd5 {[%clk 0:02:57]} 11. cxd5 {[%clk 0:02:56]}  Re8 {[%clk 0:02:48]} 12. Nbd2 {[%clk 0:02:55]}  Ba6 {[%clk 0:02:49]} 13. Rb1 {[%clk 0:02:40]}  Bxd3 {[%clk 0:02:47]} 14. Qxd3 {[%clk 0:02:41]}  Nbd7 {[%clk 0:02:46]} 15. b3 {[%clk 0:02:41]}  a5 {[%clk 0:02:14]} 16. Bb2 {[%clk 0:02:35]}  Nb6 {[%clk 0:02:15]} 17. f5 {[%clk 0:02:17]}  a4 {[%clk 0:02:11]} 18. fxg6 {[%clk 0:02:11]}  hxg6 {[%clk 0:02:11]} 19. Ng5 {[%clk 0:02:08]}  axb3 {[%clk 0:02:02]} 20. axb3 {[%clk 0:02:07]}  Nbd7 {[%clk 0:02:02]} 21. Qh3 {[%clk 0:02:05]}  Ne5 {[%clk 0:01:55]} 22. Nc4 {[%clk 0:01:59]}  Ra2 {[%clk 0:01:40]} 23. Bxe5 {[%clk 0:01:57]}  dxe5 {[%clk 0:01:39]} 24. Rf3 {[%clk 0:01:41]}  Nh5 {[%clk 0:00:56]} 25. Nxf7 {[%clk 0:01:37]}  Qe7 {[%clk 0:00:57]} 26. d6 {[%clk 0:01:31]} 1-0


[Site "https://www.chess.com"]

[Event "Titled Tuesday Blitz May 11 2021"]
[White "Eden, James"]
[Black "Shipov, Sergei"]
[WhiteFideId "666491"]
[BlackFideId "4113624"]
[WhiteElo "2176"]
[BlackElo "2748"]
[Result "1/2-1/2"]
[Round "03"]
[TimeControl "180+1"]
[Date "2021.05.11"]
[WhiteClock "0:00:05"]
[BlackClock "0:00:08"]

1. e4 {[%clk 0:03:00]}  e6 {[%clk 0:02:59]} 2. d4 {[%clk 0:03:00]}  d5 {[%clk 0:02:59]} 3. Nc3 {[%clk 0:02:55]}  Bb4 {[%clk 0:02:59]} 4. e5 {[%clk 0:02:55]}  c5 {[%clk 0:02:59]} 5. Bd2 {[%clk 0:02:55]}  Nh6 {[%clk 0:02:58]} 6. Nb5 {[%clk 0:02:55]}  Bxd2+ {[%clk 0:02:58]} 7. Qxd2 {[%clk 0:02:56]}  O-O {[%clk 0:02:57]} 8. f4 {[%clk 0:02:56]}  Nc6 {[%clk 0:02:56]} 9. Nf3 {[%clk 0:02:56]}  Nf5 {[%clk 0:02:50]} 10. dxc5 {[%clk 0:02:28]}  b6 {[%clk 0:02:50]} 11. Nbd4 {[%clk 0:02:22]}  Ncxd4 {[%clk 0:02:45]} 12. Nxd4 {[%clk 0:02:23]}  bxc5 {[%clk 0:02:45]} 13. Nxf5 {[%clk 0:02:24]}  exf5 {[%clk 0:02:45]} 14. O-O-O {[%clk 0:02:19]}  Be6 {[%clk 0:02:43]} 15. c4 {[%clk 0:02:15]}  dxc4 {[%clk 0:02:40]} 16. Qxd8 {[%clk 0:02:13]}  Rfxd8 {[%clk 0:02:41]} 17. Rxd8+ {[%clk 0:02:02]}  Rxd8 {[%clk 0:02:41]} 18. Be2 {[%clk 0:02:02]}  Rd4 {[%clk 0:02:41]} 19. g3 {[%clk 0:02:02]}  h6 {[%clk 0:02:41]} 20. Rd1 {[%clk 0:01:52]}  g5 {[%clk 0:02:41]} 21. Rf1 {[%clk 0:01:23]}  Kg7 {[%clk 0:02:28]} 22. Kc2 {[%clk 0:01:23]}  f6 {[%clk 0:02:25]} 23. exf6+ {[%clk 0:01:19]}  Kxf6 {[%clk 0:02:26]} 24. Kc3 {[%clk 0:01:20]}  Re4 {[%clk 0:02:14]} 25. Rf2 {[%clk 0:01:04]}  a5 {[%clk 0:02:04]} 26. Bf1 {[%clk 0:00:54]}  Re1 {[%clk 0:02:01]} 27. Kd2 {[%clk 0:00:50]}  Ra1 {[%clk 0:01:45]} 28. a3 {[%clk 0:00:50]}  g4 {[%clk 0:01:40]} 29. Be2 {[%clk 0:00:37]}  h5 {[%clk 0:01:37]} 30. Rf1 {[%clk 0:00:34]}  Rxf1 {[%clk 0:01:03]} 31. Bxf1 {[%clk 0:00:35]}  h4 {[%clk 0:00:52]} 32. Kc3 {[%clk 0:00:33]}  hxg3 {[%clk 0:00:49]} 33. hxg3 {[%clk 0:00:34]}  Ke7 {[%clk 0:00:48]} 34. Bxc4 {[%clk 0:00:34]}  Bd7 {[%clk 0:00:48]} 35. Bd5 {[%clk 0:00:26]}  Kd6 {[%clk 0:00:48]} 36. Bf7 {[%clk 0:00:24]}  Bb5 {[%clk 0:00:44]} 37. Bc4 {[%clk 0:00:20]}  Bc6 {[%clk 0:00:37]} 38. Kb3 {[%clk 0:00:18]}  Bd7 {[%clk 0:00:34]} 39. Kc3 {[%clk 0:00:17]}  Kc6 {[%clk 0:00:32]} 40. Bb3 {[%clk 0:00:15]}  Kd6 {[%clk 0:00:30]} 41. Bc2 {[%clk 0:00:14]}  Kd5 {[%clk 0:00:27]} 42. Bd3 {[%clk 0:00:14]}  Bc8 {[%clk 0:00:24]} 43. Bb1 {[%clk 0:00:12]}  Bd7 {[%clk 0:00:23]} 44. Kd3 {[%clk 0:00:11]}  Bb5+ {[%clk 0:00:14]} 45. Ke3 {[%clk 0:00:11]}  Bd7 {[%clk 0:00:13]} 46. Ba2+ {[%clk 0:00:11]}  Kd6 {[%clk 0:00:13]} 47. Bc4 {[%clk 0:00:10]}  Bc8 {[%clk 0:00:11]} 48. Kd3 {[%clk 0:00:09]}  Bd7 {[%clk 0:00:11]} 49. Ba6 {[%clk 0:00:10]}  Be6 {[%clk 0:00:11]} 50. Bb5 {[%clk 0:00:09]}  Bc8 {[%clk 0:00:10]} 51. Kc3 {[%clk 0:00:08]}  Be6 {[%clk 0:00:10]} 52. Ba6 {[%clk 0:00:08]}  Kc6 {[%clk 0:00:09]} 53. Bc4 {[%clk 0:00:07]}  Bd7 {[%clk 0:00:09]} 54. Kb3 {[%clk 0:00:06]}  Kd6 {[%clk 0:00:09]} 55. Bd3 {[%clk 0:00:06]}  Kd5 {[%clk 0:00:08]} 56. Kc3 {[%clk 0:00:06]}  Kd6 {[%clk 0:00:08]} 57. Bc2 {[%clk 0:00:05]}  Kd5 {[%clk 0:00:08]} 58. Bd3 {[%clk 0:00:05]} 1/2-1/2


[Site "https://www.chess.com"]

[Event "Titled Tuesday Blitz May 11 2021"]
[White "Estrada Nieto, Julian"]
[Black "Pantsulaia, Levan"]
[WhiteFideId "5101018"]
[BlackFideId "13602071"]
[WhiteElo "2270"]
[BlackElo "2530"]
[Result "0-1"]
[Round "03"]
[TimeControl "180+1"]
[Date "2021.05.11"]
[WhiteClock "0:00:01"]
[BlackClock "0:00:19"]

1. e4 {[%clk 0:02:28]}  c5 {[%clk 0:02:57]} 2. Nf3 {[%clk 0:02:28]}  e6 {[%clk 0:02:57]} 3. c3 {[%clk 0:02:27]}  Nf6 {[%clk 0:02:56]} 4. e5 {[%clk 0:02:26]}  Nd5 {[%clk 0:02:56]} 5. Bc4 {[%clk 0:02:27]}  Nc7 {[%clk 0:02:45]} 6. d4 {[%clk 0:02:23]}  b5 {[%clk 0:02:40]} 7. Bd3 {[%clk 0:02:18]}  Bb7 {[%clk 0:02:38]} 8. O-O {[%clk 0:02:17]}  a6 {[%clk 0:02:35]} 9. Nbd2 {[%clk 0:02:15]}  c4 {[%clk 0:02:33]} 10. Bc2 {[%clk 0:02:10]}  d5 {[%clk 0:02:34]} 11. exd6 {[%clk 0:02:09]}  Bxd6 {[%clk 0:02:32]} 12. Ne4 {[%clk 0:02:06]}  Nd5 {[%clk 0:02:28]} 13. Re1 {[%clk 0:02:03]}  Nc6 {[%clk 0:02:22]} 14. Bg5 {[%clk 0:01:41]}  Nce7 {[%clk 0:02:20]} 15. a4 {[%clk 0:01:36]}  h6 {[%clk 0:02:18]} 16. Bh4 {[%clk 0:01:34]}  O-O {[%clk 0:02:04]} 17. Bg3 {[%clk 0:01:28]}  Bxg3 {[%clk 0:01:59]} 18. hxg3 {[%clk 0:01:28]}  Bc6 {[%clk 0:01:59]} 19. Ne5 {[%clk 0:01:21]}  Qc7 {[%clk 0:01:57]} 20. Qh5 {[%clk 0:00:59]}  Be8 {[%clk 0:01:43]} 21. Qf3 {[%clk 0:00:43]}  b4 {[%clk 0:01:41]} 22. Nc5 {[%clk 0:00:36]}  a5 {[%clk 0:01:35]} 23. Nxc4 {[%clk 0:00:31]}  bxc3 {[%clk 0:01:32]} 24. bxc3 {[%clk 0:00:29]}  Rb8 {[%clk 0:01:12]} 25. Qd3 {[%clk 0:00:28]}  Ng6 {[%clk 0:01:09]} 26. Rab1 {[%clk 0:00:22]}  Rxb1 {[%clk 0:00:59]} 27. Rxb1 {[%clk 0:00:21]}  Nf6 {[%clk 0:00:43]} 28. Ne3 {[%clk 0:00:13]}  Qc8 {[%clk 0:00:25]} 29. Qa6 {[%clk 0:00:11]}  Qd8 {[%clk 0:00:23]} 30. Qb6 {[%clk 0:00:10]}  Qa8 {[%clk 0:00:22]} 31. Qb7 {[%clk 0:00:09]}  Qd8 {[%clk 0:00:22]} 32. Qa7 {[%clk 0:00:07]}  Nd5 {[%clk 0:00:20]} 33. Nxd5 {[%clk 0:00:03]}  Qxd5 {[%clk 0:00:21]} 34. Be4 {[%clk 0:00:03]}  Qa2 {[%clk 0:00:20]} 35. Qxa5 {[%clk 0:00:01]}  f5 {[%clk 0:00:19]} 36. Bd3 {[%clk 0:00:01]}  Qd2 {[%clk 0:00:19]} 0-1


[Site "https://www.chess.com"]

[Event "Titled Tuesday Blitz May 11 2021"]
[White "Eynullayev, Atilla"]
[Black "Jones, Gawain C B"]
[WhiteFideId "13413570"]
[BlackFideId "409561"]
[WhiteElo "1997"]
[BlackElo "2657"]
[Result "0-1"]
[Round "03"]
[TimeControl "180+1"]
[Date "2021.05.11"]
[WhiteClock "0:00:03"]
[BlackClock "0:01:40"]

1. d4 {[%clk 0:03:00]}  Nf6 {[%clk 0:02:59]} 2. Bf4 {[%clk 0:03:01]}  c5 {[%clk 0:02:59]} 3. e3 {[%clk 0:03:01]}  g6 {[%clk 0:02:59]} 4. Nf3 {[%clk 0:02:58]}  Bg7 {[%clk 0:02:59]} 5. c3 {[%clk 0:02:57]}  b6 {[%clk 0:02:58]} 6. h3 {[%clk 0:02:57]}  Bb7 {[%clk 0:02:58]} 7. Be2 {[%clk 0:02:58]}  d6 {[%clk 0:02:56]} 8. Nbd2 {[%clk 0:02:57]}  Nbd7 {[%clk 0:02:55]} 9. O-O {[%clk 0:02:58]}  O-O {[%clk 0:02:52]} 10. a4 {[%clk 0:02:57]}  cxd4 {[%clk 0:02:50]} 11. exd4 {[%clk 0:02:53]}  e5 {[%clk 0:02:36]} 12. dxe5 {[%clk 0:02:43]}  dxe5 {[%clk 0:02:36]} 13. Nxe5 {[%clk 0:01:26]}  Nd5 {[%clk 0:02:34]} 14. Nxd7 {[%clk 0:01:26]}  Nxf4 {[%clk 0:02:34]} 15. Nxf8 {[%clk 0:01:26]}  Qg5 {[%clk 0:02:30]} 16. Bg4 {[%clk 0:00:52]}  Bxg2 {[%clk 0:02:27]} 17. Nf3 {[%clk 0:00:46]}  Nxh3+ {[%clk 0:02:24]} 18. Kxg2 {[%clk 0:00:44]}  Qxg4+ {[%clk 0:02:25]} 19. Kh2 {[%clk 0:00:41]}  Nf4 {[%clk 0:02:21]} 20. Ne1 {[%clk 0:00:08]}  Qh3+ {[%clk 0:02:04]} 21. Kg1 {[%clk 0:00:08]}  Be5 {[%clk 0:02:04]} 22. f3 {[%clk 0:00:03]}  Qg3+ {[%clk 0:01:40]} 23. Kh1 {[%clk 0:00:03]}  Qh4+ {[%clk 0:01:41]} 24. Kg1 {[%clk 0:00:03]}  Nh3+ {[%clk 0:01:40]} 25. Kh1 {[%clk 0:00:03]}  Nf2+ {[%clk 0:01:40]} 0-1


[Site "https://www.chess.com"]